Cogmind - Beta 12 @@@ ROGUE MODE // 2023.07.21 @ 20:30:47 Player: Shadow Pussy wanter Result: Self-destructed Performance ------------- Evolutions (5) 2500 Regions Visited (13) 2600 Robots Destroyed (90) 450 Value Destroyed (2839) 2839 Prototype IDs (15) 300 Alien Tech Used (0) 0 Bonus (632) 632 TOTAL SCORE: 9321 Bonus ------- Follower Combat Kills 141 Met Imprinter 300 Was Imprinted 300 Friendly Fire -109 Cogmind --------- Core Integrity 1000/1000 Matter 220/300 Energy 226/300 System Corruption 8% Temperature Cool (54) Movement Core (500) Ox9 Location -5/Extension Parts ------- > --- POWER (2) -------- Angular Momentum Engine > --- PROPULSION (6) --- Armored Medium Treads Compact Wheel Centrium Wheel Antigrav Array > --- UTILITY (7) ------ Experimental Signal Interpreter Advanced System Shield > --- WEAPON (2) ------- Improved EM Pulse Cannon Long-range Proton Cannon > --- INVENTORY (5) ---- Huge Storage Unit Power Maul Peak State ------------ > --- POWER ------------ Reinforced Deuterium Engine Fission Core > --- PROPULSION ------- Light Treads Armored Treads Improved Medium Treads Improved Medium Treads > --- UTILITY ---------- Improved Cooling System Huge Storage Unit Advanced Sensor Array Experimental Signal Interpreter Experimental Terrain Scan Processor Advanced Targeting Computer Layered Medium Armor Plating > --- WEAPON ----------- Plasma Cannon Plasma Cannon > --- INVENTORY -------- Reinforced Deuterium Engine Micro Nuclear Core Neutrino Core Medium Treads Improved Cooling System High-capacity Matter Pod Improved Sensor Array Improved Weapon Shielding Hardened Light Armor Plating Improved Light Armor Plating Reactive Plating Reflective Plating Medium Reflective Plating Long-range Tractor Beam Heavy EM Shotgun Heavy EM Shotgun Plasma Cannon Heavy Plasma Cannon Heavy Machine Gun Heavy Machine Gun Mini Grenade Launcher Missile Launcher RU-N14's Throwing Claymores RU-N14's Throwing Claymores Power Maul [Rating: 74] Favorites ----------- Power Deuterium Engine Engine Deuterium Engine Power Core Fission Core Propulsion Improved Titanium Leg Treads Light Treads Leg Improved Titanium Leg Wheel Compact Wheel Hover Unit Antigrav Array Utility Huge Storage Unit Device Improved Sensor Array Storage Huge Storage Unit Processor Improved Targeting Computer Hackware Advanced System Shield Protection Light Armor Plating Weapon Plasma Cannon Energy Gun Heavy EM Shotgun Energy Cannon Plasma Cannon Ballistic Gun Heavy Assault Rifle Launcher Mini Grenade Launcher Special Weapon RU-N14's Throwing Claymores Impact Weapon Great Maul Build | -11 -10 -9 -8 -7 -7 -7 -7 -6 -6 -5 -5 -5 -5 ------- Run | Jun Mat Mat Mat Fac Low Low Zio Pro Fac Fac Was Fac Ext Slots Evolved 10 | . . 2 2 2 . . . . 2 2 . . . Power 1 | . . . . . . . . . 1 . . . . Propulsion 4 | . . 2 . . . . . . . 2 . . . Utility 5 | . . . 2 2 . . . . 1 . . . . Weapon . | . . . . . . . . . . . . . . Parts Attached 156 | 7 9 14 21 18 33 . 17 16 13 . 2 3 3 Power 15 | 1 2 1 3 . 2 . 1 2 2 . . . 1 Engine 11 | 1 . 1 3 . 2 . 1 2 . . . . 1 Core 4 | . 2 . . . . . . . 2 . . . . Reactor . | . . . . . . . . . . . . . . Propulsion 33 | 2 3 5 8 . 2 . 1 5 3 . 2 2 . Treads 12 | 2 . 1 . . . . . 5 3 . . 1 . Leg 14 | . 1 2 8 . 2 . 1 . . . . . . Wheel 6 | . 2 2 . . . . . . . . 1 1 . Hover 1 | . . . . . . . . . . . 1 . . Flight . | . . . . . . . . . . . . . . Utility 63 | 2 2 1 4 9 23 . 11 3 7 . . 1 . Device 29 | 1 1 . 1 4 17 . 1 1 3 . . . . Storage 3 | 1 1 . . . 1 . . . . . . . . Processor 12 | . . . 1 2 . . 9 . . . . . . Hackware 1 | . . . . . . . . . . . . 1 . Protection 18 | . . 1 2 3 5 . 1 2 4 . . . . Artifact . | . . . . . . . . . . . . . . Weapon 45 | 2 2 7 6 9 6 . 4 6 1 . . . 2 Energy Gun 6 | . . 2 4 . . . . . . . . . . Energy Cannon 20 | . . 2 2 5 4 . 1 3 1 . . . 2 Ballistic Gun 7 | 2 2 2 . . . . . 1 . . . . . Ballistic Cannon . | . . . . . . . . . . . . . . Launcher 7 | . . 1 . 2 2 . 1 1 . . . . . Special Weapon 1 | . . . . . . . . 1 . . . . . Impact Weapon 4 | . . . . 2 . . 2 . . . . . . Slashing Weapon . | . . . . . . . . . . . . . . Piercing Weapon . | . . . . . . . . . . . . . . Special Melee Weapon . | . . . . . . . . . . . . . . Unidentified Prototypes 12 | . . 3 1 . . . 7 1 . . . . . Corrupted Parts 6 | . . . . . . . . 6 . . . . . System Corruption 35 | . . . . . . . . 35 . . . . . Parts Lost 27 | . 1 5 2 . 4 . . 1 14 . . . . Power 4 | . 1 1 1 . 1 . . . . . . . . Propulsion 12 | . . 3 1 . 2 . . 1 5 . . . . Utility 7 | . . 1 . . 1 . . . 5 . . . . Weapon 4 | . . . . . . . . . 4 . . . . Highest Loss Streak 12 | . 1 2 2 . 3 . . 1 12 . . . . To Critical Strikes . | . . . . . . . . . . . . . . Average Slot Usage (%) 93 | . 99 91 99 100 98 100 90 99 88 5 11 27 49 Engine 6 | . 4 7 8 7 7 7 7 7 5 . . . 4 Core 1 | . 9 . . . . . . . 4 . . . . Treads 5 | . 22 3 . . . . . 15 23 . . 3 5 Leg 21 | . . 10 33 30 29 30 30 14 . . . . . Wheel 2 | . 5 24 1 . . . . . . . 3 6 11 Device 9 | . 14 . 9 11 13 15 8 7 10 . . . . Storage 7 | . 14 11 9 7 7 7 7 7 5 . . . . Processor 16 | . . . 9 23 23 23 23 23 19 5 5 5 5 Protection 3 | . . 9 9 3 1 . . 7 5 . . . . Energy Gun 2 | . . 2 11 4 . . . . . . . . . Energy Cannon 7 | . . 5 6 9 8 7 5 12 11 . . . 9 Ballistic Gun 2 | . 28 13 . . . . . . . . . . . Launcher 1 | . . . . . 5 7 1 1 . . . . . Impact Weapon 1 | . . . . . . . 4 . . . . . . Naked Turns . | . . . . . . . . . . . . . . Heaviest Build 134 | 14 92 94 101 116 116 95 98 122 134 . . . 29 Greatest Support 100 | 40 40 48 80 80 80 74 74 100 100 3 3 3 3 Greatest Overweight (x) 9 | . 8 5 5 1 1 1 1 3 1 . . . 9 Average Overweight (x) 1 | . 1 2 1 1 1 1 1 1 . . . . 3 Largest Inventory Capacity 25 | 8 25 25 25 25 25 25 25 25 25 5 5 5 5 Average Capacity 23 | 7 14 25 25 25 25 25 25 25 22 5 5 5 5 Most Carried 25 | 7 22 25 25 25 25 25 25 25 25 5 5 5 5 Average Carried 22 | 4 10 23 24 24 24 24 24 24 22 5 5 4 2 Final Capacity 25 | 8 25 25 25 25 25 25 25 25 5 5 5 5 5 Final Carried 25 | 7 22 25 25 25 24 25 24 25 5 5 5 5 2 Class Distribution -------------------- 71% | Mutant 18% | Scavenger-Mutant 7% | Skirmisher Dominant Class ---------------- Mutant | -10/Materials Mutant | -9/Materials Mutant | -8/Materials Skirmisher | -7/Factory Mutant | -7/Lower Caves Mutant | -7/Lower Caves Mutant | -7/Zion Scavenger-Mutant | -6/Proximity Caves Scavenger-Mutant | -6/Factory Scavenger-Mutant | -5/Factory Mutant | -5/Waste Mutant | -5/Factory Mutant | -5/Extension Resources | -11 -10 -9 -8 -7 -7 -7 -7 -6 -6 -5 -5 -5 -5 ----------- Run | Jun Mat Mat Mat Fac Low Low Zio Pro Fac Fac Was Fac Ext Matter Collected 2475 | 305 161 623 156 88 656 . 30 241 215 . . . . Remotely 188 | . . . . . 188 . . . . . . . . Salvage Created 3169 | 112 330 817 986 263 360 . . 85 216 . . . . Parts 193 | 14 18 57 52 29 5 . . 8 10 . . . . Haulers Intercepted 3 | . . 2 1 . . . . . . . . . . Recyclers Shooed 7 | 1 1 2 2 . . . . . 1 . . . . Parts Field Recycled . | . . . . . . . . . . . . . . Retrieved Matter . | . . . . . . . . . . . . . . Parts Self-Destructed 15 | . . . . . 5 3 . 7 . . . . . Prevented 10 | . . . . . . . . 10 . . . . . Kills | -11 -10 -9 -8 -7 -7 -7 -7 -6 -6 -5 -5 -5 -5 ------- Run | Jun Mat Mat Mat Fac Low Low Zio Pro Fac Fac Was Fac Ext Combat Hostiles Destroyed 68 | . 6 16 17 8 13 . . 4 4 . . . . Guns 22 | . 6 10 6 . . . . . . . . . . Cannons 19 | . . 2 9 1 2 . . 1 4 . . . . AOE 26 | . . 4 2 7 10 . . 3 . . . . . Classes Destroyed 14 | 2 2 7 1 1 1 . . . . . . . . Worker 6 | 1 . 1 2 2 . . . . . . . . . Builder 2 | . . 1 . 1 . . . . . . . . . Tunneler 4 | 4 . . . . . . . . . . . . . Hauler 3 | . . 2 1 . . . . . . . . . . Recycler 2 | . 1 1 . . . . . . . . . . . Watcher 5 | . . 2 2 1 . . . . . . . . . Swarmer 17 | . . 4 3 6 1 . . 3 . . . . . Grunt 28 | . 6 7 8 . 6 . . . 1 . . . . Brawler 3 | . . 1 . . 2 . . . . . . . . Duelist 3 | . . 1 . . 2 . . . . . . . . Sentry 11 | . . 3 5 1 1 . . . 1 . . . . Hunter 1 | . . . 1 . . . . . . . . . . Programmer 4 | . . . . 1 . . . 1 2 . . . . Thief 1 | . . . . . 1 . . . . . . . . Best Kill Streak 6 | 2 2 6 5 5 4 . . 3 2 . . . . Combat Bots Only 5 | . 2 5 4 3 4 . . 3 2 . . . . Max Kills in Single Turn 3 | 1 1 3 1 3 2 . . 2 1 . . . . Gunslinging . | . . . . . . . . . . . . . . Exploded 3 | . . 3 1 2 2 . . 2 . . . . . Melee . | . . . . . . . . . . . . . . Uniques/NPCs Destroyed . | . . . . . . . . . . . . . . Combat | -11 -10 -9 -8 -7 -7 -7 -7 -6 -6 -5 -5 -5 -5 -------- Run | Jun Mat Mat Mat Fac Low Low Zio Pro Fac Fac Was Fac Ext Damage Taken 5971 | . 503 593 660 552 1107 . . 486 2053 . . . 17 Core 1291 | . 98 111 50 96 169 . . 164 603 . . . . Absorbed by Shields . | . . . . . . . . . . . . . . Redirected to Shielding 11 | . . 8 3 . . . . . . . . . . Core Remaining (%) 64 | 100 60 72 90 . . . . 38 29 . . . . Volleys Fired 205 | 11 32 51 44 13 31 . . 8 14 . . . 1 Largest 2 | 2 2 2 2 2 2 . . 2 2 . . . 2 Hottest 160 | 40 40 136 136 160 160 . . 160 160 . . . 150 Shots Fired 386 | 22 64 100 88 19 44 . . 17 30 . . . 2 Gun 214 | 22 64 86 38 4 . . . . . . . . . Cannon 147 | . . 12 50 8 30 . . 15 30 . . . 2 Launcher 25 | . . 2 . 7 14 . . 2 . . . . . Special . | . . . . . . . . . . . . . . Kinetic 162 | 22 64 76 . . . . . . . . . . . Thermal 157 | . . 22 52 8 30 . . 15 30 . . . . Explosive 25 | . . 2 . 7 14 . . 2 . . . . . Electromagnetic 42 | . . . 36 4 . . . . . . . . 2 Robot Hit Streak 24 | 6 10 24 15 4 7 . . 5 10 . . . . Robot Miss Streak 6 | 2 2 2 5 6 2 . . 4 1 . . . 2 Penetration Max . | . . . . . . . . . . . . . . Secondary Targets 2 | . . 2 . . . . . . . . . . . Max Gunslinging Chain 1 | . . 1 . . . . . . . . . . . Shots Hit Robots 261 | 13 44 68 64 9 30 . . 10 23 . . . . Core Hits 156 | 7 15 30 39 21 29 . . 4 11 . . . . Critical Kills 1 | . 1 . . . . . . . . . . . . Critical Parts Destroyed . | . . . . . . . . . . . . . . Critical Strikes 2 | . 1 1 . . . . . . . . . . . Burn 1 | . . 1 . . . . . . . . . . . Destroy 1 | . 1 . . . . . . . . . . . . Melee Attacks 4 | . . . . 3 . . 1 . . . . . . Impact 4 | . . . . 3 . . 1 . . . . . . Slashing . | . . . . . . . . . . . . . . Piercing . | . . . . . . . . . . . . . . Sneak Attacks . | . . . . . . . . . . . . . . Combat Hostiles . | . . . . . . . . . . . . . . Follow-up Attacks . | . . . . . . . . . . . . . . Damage Inflicted 7289 | 127 499 1320 1577 698 1802 . . 495 771 . . . . Guns 2244 | 127 497 930 649 41 . . . . . . . . . Cannons 2553 | . . 166 736 90 606 . . 252 703 . . . . Explosions 2345 | . . 210 141 555 1196 . . 243 . . . . . Melee . | . . . . . . . . . . . . . . Ramming 147 | . 2 14 51 12 . . . . 68 . . . . Kinetic 1484 | 127 497 860 . . . . . . . . . . . Thermal 2846 | . . 236 895 154 606 . . 252 703 . . . . Explosive 2140 | . . 210 . 491 1196 . . 243 . . . . . Electromagnetic 672 | . . . 631 41 . . . . . . . . . Impact . | . . . . . . . . . . . . . . Slashing . | . . . . . . . . . . . . . . Piercing . | . . . . . . . . . . . . . . Highest Corruption 37 | . . 3 . . . . 5 37 9 . 8 8 8 Average Corruption 8 | . . 2 . . . . 5 17 4 . 8 8 8 Corruption Purged . | . . . . . . . . . . . . . . Corruption Blocked . | . . . . . . . . . . . . . . Effects 51 | . . 7 . . . . 4 22 11 . 1 3 3 Message Errors 12 | . . 3 . . . . . 2 3 . . 2 2 Matter Fused 10 | . . 1 . . . . 2 7 . . . . . Heat Flow Errors 6 | . . 1 . . . . . 3 . . 1 . 1 Energy Discharges 7 | . . 1 . . . . 1 4 1 . . . . Data Loss (minor) 8 | . . 1 . . . . . 2 4 . . 1 . Data Loss (major) 1 | . . . . . . . . 1 . . . . . Misfires 5 | . . . . . . . . 3 2 . . . . Alerts 2 | . . . . . . . 1 . 1 . . . . Overload Shots . | . . . . . . . . . . . . . . Overflow Damage 50 | . . . 5 . 45 . . . . . . . . Projectiles 24 | . . . 5 . 19 . . . . . . . . Explosions 26 | . . . . . 26 . . . . . . . . Melee . | . . . . . . . . . . . . . . Knockbacks 2 | . . . . 1 . . . . 1 . . . . Impact 2 | . . . . 1 . . . . 1 . . . . Kinetic . | . . . . . . . . . . . . . . Secondary . | . . . . . . . . . . . . . . Self-Inflicted Damage 235 | . . 7 5 62 131 . . . 30 . . . . Shots 5 | . . . . 2 3 . . . . . . . . Rammed 14 | . 1 2 1 . . . . . 10 . . . . Targets Rammed 20 | . 1 2 5 2 . . . . 10 . . . . Kicked 6 | . . . 4 2 . . . . . . . . . Crushed . | . . . . . . . . . . . . . . Highest Temperature 449 | . 30 208 282 150 449 . . 230 301 . 178 . 170 Average Temperature 75 | . 9 52 64 61 149 . . 82 102 . 98 . 72 Received Heat Transfer 1359 | . 285 210 234 18 231 . . 24 357 . . . . Effects 1 | . . . . . 1 . . . . . . . . Shutdowns 1 | . . . . . 1 . . . . . . . . Siege Activations . | . . . . . . . . . . . . . . Robots Corrupted . | . . . . . . . . . . . . . . Combat Hostiles . | . . . . . . . . . . . . . . Parts Fried 5 | . . . 5 . . . . . . . . . . Impact Corruptions . | . . . . . . . . . . . . . . Robots Melted 1 | . . . . . 1 . . . . . . . . Combat Hostiles 1 | . . . . . 1 . . . . . . . . Parts Melted 9 | . . 2 . 4 2 . . . 1 . . . . Heat Transferred 4598 | . . 518 1482 200 1200 . . 450 748 . . . . Parts Sabotaged . | . . . . . . . . . . . . . . Parts Stolen . | . . . . . . . . . . . . . . Parts Stripped . | . . . . . . . . . . . . . . Power Chain Reactions 4 | . . . 3 1 . . . . . . . . . Missiles Intercepted . | . . . . . . . . . . . . . . Alert | -11 -10 -9 -8 -7 -7 -7 -7 -6 -6 -5 -5 -5 -5 ------- Run | Jun Mat Mat Mat Fac Low Low Zio Pro Fac Fac Was Fac Ext Peak Influence 316 | 25 176 272 316 189 . . . . 225 105 51 95 48 Initial 114 | . 16 7 114 33 . . . . . 105 36 35 46 Average 88 | 10 49 141 157 61 . . . . 31 105 42 51 46 Maximum Alert Level 1 | . . 1 1 . . . . . 1 . . . . Low Security (%) 88 | 100 100 83 68 100 . . . . 97 100 100 100 100 Level 1 11 | . . 16 31 . . . . . 2 . . . . Level 2 . | . . . . . . . . . . . . . . Level 3 . | . . . . . . . . . . . . . . Level 4 . | . . . . . . . . . . . . . . Level 5 . | . . . . . . . . . . . . . . High Security . | . . . . . . . . . . . . . . Max Security . | . . . . . . . . . . . . . . Squads Dispatched 13 | . . 1 4 3 . . . . 4 . . . 1 Investigation 6 | . . . 4 1 . . . . . . . . 1 Extermination 2 | . . . . 1 . . . . 1 . . . . Reinforcement 4 | . . 1 . 1 . . . . 2 . . . . Assault . | . . . . . . . . . . . . . . Garrison 1 | . . . . . . . . . 1 . . . . Intercept . | . . . . . . . . . . . . . . Searches Triggered . | . . . . . . . . . . . . . . Construction Impeded 1 | . . . . . . . . . 1 . . . . Haulers Reinforced . | . . . . . . . . . . . . . . Active Scanning Responses . | . . . . . . . . . . . . . . Cargo Convoy Interrupts 1 | . . . . . . . . . 1 . . . . Stealth | -11 -10 -9 -8 -7 -7 -7 -7 -6 -6 -5 -5 -5 -5 --------- Run | Jun Mat Mat Mat Fac Low Low Zio Pro Fac Fac Was Fac Ext Distress Signals 4 | . . 1 2 1 . . . . . . . . . Communications Jammed . | . . . . . . . . . . . . . . Distress Signals . | . . . . . . . . . . . . . . Times Spotted 129 | . 8 23 24 14 12 . . 5 35 . 6 1 1 Peak Tracking Total 16 | . 3 5 4 5 5 . . 3 16 . 6 4 4 Tactical Retreats 6 | . . . . . . . . . 4 . . 2 . Traps | -11 -10 -9 -8 -7 -7 -7 -7 -6 -6 -5 -5 -5 -5 ------- Run | Jun Mat Mat Mat Fac Low Low Zio Pro Fac Fac Was Fac Ext Traps Triggered 4 | . . . 2 1 . . . . . 1 . . . Indirectly . | . . . . . . . . . . . . . . Trap Hack Attempts . | . . . . . . . . . . . . . . Triggered . | . . . . . . . . . . . . . . Disarmed . | . . . . . . . . . . . . . . Reprogrammed . | . . . . . . . . . . . . . . Reused . | . . . . . . . . . . . . . . Traps Extracted . | . . . . . . . . . . . . . . Installed . | . . . . . . . . . . . . . . Triggered . | . . . . . . . . . . . . . . Machines | -11 -10 -9 -8 -7 -7 -7 -7 -6 -6 -5 -5 -5 -5 ---------- Run | Jun Mat Mat Mat Fac Low Low Zio Pro Fac Fac Was Fac Ext Machines Disabled 3 | . . . 1 1 . . . . 1 . . . . Max in Single Turn 1 | . . . 1 1 . . . . 1 . . . . Garrison Access 1 | . . . . . . . . . . . . 1 . Machines Repaired . | . . . . . . . . . . . . . . Machines Sabotaged . | . . . . . . . . . . . . . . Overloaded Fab Kills . | . . . . . . . . . . . . . . Hacking | -11 -10 -9 -8 -7 -7 -7 -7 -6 -6 -5 -5 -5 -5 --------- Run | Jun Mat Mat Mat Fac Low Low Zio Pro Fac Fac Was Fac Ext Machines Accessed 23 | . 2 2 10 6 . . . . 1 . . 1 1 Terminals 18 | . 2 2 9 4 . . . . . . . . 1 Fabricators 1 | . . . . 1 . . . . . . . . . Repair Stations . | . . . . . . . . . . . . . . Recycling Units 1 | . . . . . . . . . 1 . . . . Scanalyzers . | . . . . . . . . . . . . . . Garrison Access 3 | . . . 1 1 . . . . . . . 1 . Total Hacks 61 | . 8 4 29 14 . . . . 1 . . 2 3 Successful 20 | . 3 2 10 4 . . . . . . . 1 . Failed 40 | . 5 2 18 10 . . . . 1 . . 1 3 Catastrophic 7 | . . . 4 2 . . . . . . . . 1 Database Lockouts 1 | . . . 1 . . . . . . . . . . Manual 49 | . 8 4 21 6 . . . . 10 . . . . Terminals 53 | . 8 4 27 11 . . . . . . . . 3 Fabricators 2 | . . . . 2 . . . . . . . . . Repair Stations . | . . . . . . . . . . . . . . Recycling Units 1 | . . . . . . . . . 1 . . . . Scanalyzers . | . . . . . . . . . . . . . . Garrison Access 5 | . . . 2 1 . . . . . . . 2 . Terminal Hacks 7 | . 1 1 4 1 . . . . . . . . . Part Schematic 1 | . . . 1 . . . . . . . . . . Robot Analysis 2 | . 1 1 . . . . . . . . . . . Prototype ID Bank 1 | . . . 1 . . . . . . . . . . Terminal Index 1 | . . . . 1 . . . . . . . . . Unreport Threat 1 | . . . 1 . . . . . . . . . . Zone Layout 1 | . . . 1 . . . . . . . . . . Fabricator Hacks 1 | . . . . 1 . . . . . . . . . Network Status 1 | . . . . 1 . . . . . . . . . Repair Station Hacks . | . . . . . . . . . . . . . . Recycling Unit Hacks . | . . . . . . . . . . . . . . Scanalyzer . | . . . . . . . . . . . . . . Garrison Access Hacks 1 | . . . . . . . . . . . . 1 . Seal Access 1 | . . . . . . . . . . . . 1 . Unauthorized Hacks 11 | . 2 1 6 2 . . . . . . . . . Terminals 11 | . 2 1 6 2 . . . . . . . . . Botnet 11 | . 2 1 6 2 . . . . . . . . . Fabricators . | . . . . . . . . . . . . . . Repair Stations . | . . . . . . . . . . . . . . Recycling Units . | . . . . . . . . . . . . . . Scanalyzers . | . . . . . . . . . . . . . . Garrison Access . | . . . . . . . . . . . . . . Data Cores Recovered 1 | . . . . . . . . . 1 . . . . Used . | . . . . . . . . . . . . . . Hacking Detections 21 | . 2 2 10 5 . . . . 1 . . . 1 Full Trace Events 5 | . 1 . 2 1 . . . . . . . . 1 Feedback Events . | . . . . . . . . . . . . . . Feedback Blocked . | . . . . . . . . . . . . . . Robot Schematics Acquired 3 | . . . . . . . 3 . . . . . . Robots Built . | . . . . . . . . . . . . . . Authchips . | . . . . . . . . . . . . . . Time . | . . . . . . . . . . . . . . Total Robot Build Rating . | . . . . . . . . . . . . . . Part Schematics Acquired 16 | . . . 1 . . . 15 . . . . . . Parts Built . | . . . . . . . . . . . . . . Authchips . | . . . . . . . . . . . . . . Time . | . . . . . . . . . . . . . . Total Part Build Rating . | . . . . . . . . . . . . . . Parts Repaired . | . . . . . . . . . . . . . . Time . | . . . . . . . . . . . . . . Parts Recycled . | . . . . . . . . . . . . . . Recycled Matter . | . . . . . . . . . . . . . . Retrieved Matter . | . . . . . . . . . . . . . . Retrieved Components . | . . . . . . . . . . . . . . Parts Scanalyzed . | . . . . . . . . . . . . . . Part Schematics Acquired . | . . . . . . . . . . . . . . Parts Damaged . | . . . . . . . . . . . . . . Bothacking | -11 -10 -9 -8 -7 -7 -7 -7 -6 -6 -5 -5 -5 -5 ------------ Run | Jun Mat Mat Mat Fac Low Low Zio Pro Fac Fac Was Fac Ext Used RIF Installer . | . . . . . . . . . . . . . . Robots Hacked . | . . . . . . . . . . . . . . Non-combat . | . . . . . . . . . . . . . . Combat . | . . . . . . . . . . . . . . Robot Hacks Applied . | . . . . . . . . . . . . . . Relay Couplers Released . | . . . . . . . . . . . . . . Fabnet Peak Effective % . | . . . . . . . . . . . . . . Robots Rewired . | . . . . . . . . . . . . . . Allies Hacked 1 | . . . . . . . . . 1 . . . . Hacks Repelled . | . . . . . . . . . . . . . . Allies | -11 -10 -9 -8 -7 -7 -7 -7 -6 -6 -5 -5 -5 -5 -------- Run | Jun Mat Mat Mat Fac Low Low Zio Pro Fac Fac Was Fac Ext Total Allies 12 | . . . . . . . 6 . 6 . . . . Largest Group 6 | . . . . . . . 6 6 4 . . . . Highest-Rated Group 230 | . . . . . . . 192 192 230 . . . . Highest-Rated Ally 85 | . . . . . . . 40 40 85 . . . . Zionite Dispatches 2 | . . . . . . . . . 2 . . . . Heavy 1 | . . . . . . . . . 1 . . . . Fire 1 | . . . . . . . . . 1 . . . . Total Orders . | . . . . . . . . . . . . . . Ally Attacks 38 | . . . . . . . . 28 10 . . . . Total Damage 1664 | . . . . . . . . 960 704 . . . . Kills 5 | . . . . . . . . 3 2 . . . . Allies Corrupted 5 | . . . . . . . . . 5 . . . . Allies Melted . | . . . . . . . . . . . . . . Intel | -11 -10 -9 -8 -7 -7 -7 -7 -6 -6 -5 -5 -5 -5 ------- Run | Jun Mat Mat Mat Fac Low Low Zio Pro Fac Fac Was Fac Ext Robot Analysis Total 2 | . 1 1 . . . . . . . . . . . Derelict Logs Recovered 3 | . . . . . 2 . 1 . . . . . . Drone Launches . | . . . . . . . . . . . . . . Drone Recoveries . | . . . . . . . . . . . . . . Zionite Intel Received 2 | . . . . . . . . . 2 . . . . Component Stockpiles 1 | . . . . . . . . . 1 . . . . Trap Installations 1 | . . . . . . . . . 1 . . . . Exploration | -11 -10 -9 -8 -7 -7 -7 -7 -6 -6 -5 -5 -5 -5 ------------- Run | Jun Mat Mat Mat Fac Low Low Zio Pro Fac Fac Was Fac Ext Turns Passed 10030 | 247 627 771 1417 942 1457 166 2245 804 1056 14 40 120 124 Spaces Moved 4977 | 128 287 418 606 420 614 82 1100 337 607 28 74 227 49 Core 649 | 12 . . . . . . . . 259 28 74 227 49 Treads 808 | 116 184 . . . . . . 160 348 . . . . Legs 2917 | . 1 . 523 420 614 82 1100 177 . . . . . Wheels 603 | . 102 418 83 . . . . . . . . . . Hover . | . . . . . . . . . . . . . . Flight . | . . . . . . . . . . . . . . Fastest Speed 50 | 50 130 115 135 200 200 200 200 200 50 50 50 50 50 Average Speed 176 | 149 169 129 192 200 200 200 200 221 159 50 50 50 206 Slowest Speed 680 | 160 680 175 480 200 200 200 200 400 242 50 50 50 500 Overloaded Moves . | . . . . . . . . . . . . . . Propulsion Burnouts . | . . . . . . . . . . . . . . Robots Hopped . | . . . . . . . . . . . . . . Cave-ins Triggered . | . . . . . . . . . . . . . . Exploration Rate (%) 36 | 9 51 40 55 13 71 13 90 53 24 1 78 7 9 Regions Visited 13 Branch Regions 5 Pre-discovered Areas 3 | . . . . . . . 3 . . . . . . Known Exits Taken 7 | . . . . 1 1 1 1 1 1 . . 1 . Unknown Exits Taken 4 | 1 1 1 1 . . . . . . . . . . Scrap Searched 3 | . . . . . 1 1 1 . . . . . . Spaces Dug 24 | . . . . 3 21 . . . . . . . . Terrain Destroyed 181 | . . 18 10 52 88 . . 13 . . . . . Melee 3 | . . . . 3 . . . . . . . . . Projectile 1 | . . . . . 1 . . . . . . . . AOE 177 | . . 18 10 49 87 . . 13 . . . . . Terrain Rammed . | . . . . . . . . . . . . . . Walls Destroyed . | . . . . . . . . . . . . . . Machines Disabled . | . . . . . . . . . . . . . . Actions | -11 -10 -9 -8 -7 -7 -7 -7 -6 -6 -5 -5 -5 -5 --------- Run | Jun Mat Mat Mat Fac Low Low Zio Pro Fac Fac Was Fac Ext Total 5822 | 160 370 550 779 495 785 85 1148 377 669 28 75 231 70 Wait 280 | 8 20 40 52 24 102 1 7 8 1 . . . 17 Move 4966 | 127 286 417 606 419 613 81 1099 336 606 28 73 226 49 Hop . | . . . . . . . . . . . . . . Pick Up 88 | 7 14 14 21 9 5 2 6 3 6 . . 1 . Fast Attach 47 | 7 5 8 7 . 1 . 10 2 2 . 2 3 . Attach 24 | . . 4 3 2 5 . 2 3 2 . . . 3 Detach 1 | . 1 . . . . . . . . . . . . Swap 85 | . 4 2 11 16 27 . 5 11 9 . . . . Drop 103 | . 7 12 31 7 1 1 18 6 19 . . 1 . Fire 205 | 11 32 51 44 13 31 . . 8 14 . . . 1 Melee 4 | . . . . 3 . . 1 . . . . . . Ram 12 | . . 2 1 . . . . . 9 . . . . Kick 5 | . . . 3 2 . . . . . . . . . Crush 2 | . 1 . . . . . . . 1 . . . . Escape Stasis . | . . . . . . . . . . . . . . Rewire . | . . . . . . . . . . . . . . Trap . | . . . . . . . . . . . . . . Miscellaneous . | . . . . . . . . . . . . . . Route ------- -11/Junkyard -10/Materials (discovered 2 exits: *Mat x2) -9/Materials -8/Materials -7/Factory -7/Lower Caves -7/Lower Caves -7/Zion -6/Proximity Caves -6/Factory -5/Factory -5/Waste -5/Factory -5/Extension History --------- Turn | Location | Event 12 | -11/Junkyard | Discovered new exit (range 15) 248 | -11/Junkyard | Entered Materials 313 | -10/Materials | Build established: Mutant 322 | -10/Materials | Discovered new exit (range 16) 858 | -10/Materials | Discovered new exit (range 8) 875 | -10/Materials | Entered another Materials area 875 | -9/Materials | Evolved 2 slots: Propulsion x2 1578 | -9/Materials | Build established: Scavenger-Mutant 1615 | -9/Materials | Discovered new exit (range 16) 1646 | -9/Materials | Entered another Materials area 1646 | -8/Materials | Evolved 2 slots: Utility x2 1989 | -8/Materials | Central database locked down 2113 | -8/Materials | Build established: Mutant 3055 | -8/Materials | Discovered new exit (range 5) 3063 | -8/Materials | Entered Factory 3063 | -7/Factory | Evolved 2 slots: Utility x2 3712 | -7/Factory | Build established: Skirmisher 3927 | -7/Factory | Discovered new exit (range 13) 3993 | -7/Factory | Identified exit to Lower Caves 4005 | -7/Factory | Entered Lower Caves 4080 | -7/Lower Caves | Learned 4 Factory zone layouts 4175 | -7/Lower Caves | Learned Factory emergency access door positions 4269 | -7/Lower Caves | Build established: Mutant 5116 | -7/Lower Caves | Lost 3 parts (1p1n1u) 5145 | -7/Lower Caves | Attracted the attention of an 0b10 checkpoint 5252 | -7/Lower Caves | Discovered new exit (range 16) 5280 | -7/Lower Caves | Identified exit to Lower Caves 5462 | -7/Lower Caves | Entered another Lower Caves area 5602 | -7/Lower Caves | Discovered new exit (range 15) 5626 | -7/Lower Caves | Identified exit to Zion 5628 | -7/Lower Caves | Entered Zion 5710 | -7/Zion | Discovered new exit (range 10) 5822 | -7/Zion | Gained Derelict followers 6224 | -7/Zion | Found Prototype Processor 6224 | -7/Zion | Identified Exp. Core Analyzer 6227 | -7/Zion | Found Prototype Processor 6227 | -7/Zion | Identified Exp. Terrain Scan Processor 6231 | -7/Zion | Found Prototype Processor 6231 | -7/Zion | Identified Exp. Melee Analysis Suite 6235 | -7/Zion | Found Prototype Processor 6235 | -7/Zion | Identified Exp. Signal Interpreter 6241 | -7/Zion | Found Prototype Processor 6241 | -7/Zion | Identified Spectral Analyzer 6268 | -7/Zion | Found Prototype Processor 6268 | -7/Zion | Identified Exp. Targeting Computer 6431 | -7/Zion | System corruption cleaned by Quarantine Array 7104 | -7/Zion | Found Prototype Special Weapon 7108 | -7/Zion | Found Prototype Special Weapon 7175 | -7/Zion | Learned location of Warlord (-5) 7277 | -7/Zion | Learned location of Armory (-3) 7509 | -7/Zion | Imprinted 7511 | -7/Zion | Declared Zion's savior 7865 | -7/Zion | Identified exit to Proximity Caves 7873 | -7/Zion | Entered Proximity Caves 7873 | -6/Proximity Caves | Accompanied by 6 allies 7986 | -6/Proximity Caves | P-60 Hacker assimilated allied U0-WPB(M) 8206 | -6/Proximity Caves | Spotted B-75 Beast 8210 | -6/Proximity Caves | Core integrity fell below 50% 8228 | -6/Proximity Caves | Allies destroyed B-75 Beast 8259 | -6/Proximity Caves | System corruption reached 10% 8565 | -6/Proximity Caves | Build established: Scavenger-Mutant 8634 | -6/Proximity Caves | Discovered new exit (range 14) 8665 | -6/Proximity Caves | Identified exit to Factory 8669 | -6/Proximity Caves | System corruption reached 30% 8673 | -6/Proximity Caves | Identified RU-N14's Throwing Claymores (x2) 8677 | -6/Proximity Caves | Entered Factory 8677 | -6/Factory | Accompanied by 4 allies 8677 | -6/Factory | Evolved 2 slots: Power x1, Utility x1 9050 | -6/Factory | Retrieved Zion intel report: Component Stockpiles 9367 | -6/Factory | Retrieved Zion intel report: Trap Installations 9368 | -6/Factory | Zion Heavy squad teleported in 9513 | -6/Factory | Cargo convoy interrupted 9517 | -6/Factory | Garrison activated, responded to threat 9634 | -6/Factory | Lost 12 parts (4n4u4w) 9642 | -6/Factory | Zion Fire squad teleported in 9666 | -6/Factory | Spotted B-75 Beast 9715 | -6/Factory | Core integrity fell below 50% 9725 | -6/Factory | Discovered new exit (range 15) 9732 | -6/Factory | Identified exit to Factory 9733 | -6/Factory | Entered another Factory area 9733 | -5/Factory | Evolved 2 slots: Propulsion x2 9747 | -5/Factory | Sucked down chute 9747 | -5/Factory | Entered Waste 9756 | -5/Waste | Spotted C-40 Crusher 9761 | -5/Waste | Spotted C-40 Crusher 9761 | -5/Waste | Spotted C-40 Crusher 9762 | -5/Waste | EMP discharged 9767 | -5/Waste | Spotted C-40 Crusher 9772 | -5/Waste | Spotted C-40 Crusher 9781 | -5/Waste | Discovered new exit (range 13) 9781 | -5/Waste | Spotted C-40 Crusher 9786 | -5/Waste | Identified exit to Factory 9787 | -5/Waste | Entered Factory 9867 | -5/Factory | Discovered new exit (range 16) 9897 | -5/Factory | Build established: Mutant 9906 | -5/Factory | Identified exit to Extension 9907 | -5/Factory | Entered Extension 10031 | -5/Extension | Self-destructed Last Messages --------------- 09826_ Acquired Arm. Medium Treads. 09830_ Dropped Imp. EM Pulse Cannon. 09831_ Acquired Lrn. Proton Cannon. 09843_ K-01 Serf cleans the Matter Pump. 09846_ R9LIC7LOB9QJEC E9LATNMIMYGKHRMS 09855_ K-01 Serf cleans the Matter Pump. 09865_ AXY2KWO%GY&=1QB7B 09956_ :O/A#3JITFSMOE6>LRBX0NJ <30 09995_ System corrupted: Heat flow error (+202). 10003_ Detecting system override signal. 10013_ Connecting with Door Terminal... 10013_ ALERT: Suspicious activity at Terminal E011. Dispatching Investigation squad. Map ----- +----------------------------------------------------+ | | | | | | | | | | | | | | | | | | | | | | | | | | | ??????????????????????????????????????? | | ??????????????????????????????????????? | | ??????????????????????????????????????? | | ??????????????????????????????????????? | | ??????????????????????????????????????? | | ??????????????????????????????????????? | | ??????????????????????????????????????? | | ??????????????????????????????????????? | | ???????????#"##???????????????????????? | | ????#####??# T#???????????????????????? | | ????# #### ####### "#### #??????????? | | ????# s????????? | | ????# @ #?????????? | | ????## #?????????? | | ?????# u #?????????? | | ?????# #################+##;#?????????? | | ?????# #??????????????????????????????? | | ?????# #??????????????????????????????? | | ?????# #??????????????????????????????? | | ?????# #??????????????????????????????? | | ?????# #??????????????????????????????? | | ?????# #??????????????????????????????? | | ?????# #??????????????????????????????? | | ?????# #??????????????????????????????? | | ?????# #??????????????????????????????? | | ?????# #??????????????????????????????? | | ?????# #??????????????????????????????? | | ?????# #??????????????????????????????? | | ?????# #??????????????????????????????? | | ?????# #??????????????????????????????? | | ?????# #??????????????????????????????? | | ?????# #??????????????????????????????? | | ?????# #??????????????????????????????? | | ?????# #??????????????????????????????? | | ?##### #####??????????????????????????? | | ?# "" "" #??????????????????????????? | | ?# " " ##########?????????????????? | +----------------------------------------------------+ Best States ------------- Heat Dissipation 64 Energy Generation 29 Energy Capacity 500 Matter Stores 310 Matter Capacity 500 Sight Range 16 Robot Scan Range 16 Terrain Scan Range 16 Terrain Scan Density 1010 Armor Coverage 375 Resistance: KI 20 Resistance: TH 10 Core Shielding 20 Evasion (%) 50 Targeting Accuracy 8 Recoil Reduction 4 Defensive Hacking 14 Item Schematics ----------------- Hacking Suite | -8/Materials | Hacked Imp. Core Shielding | -7/Zion | Archive Force Booster | -7/Zion | Archive Shock Absorption System | -7/Zion | Archive Imp. Thermal Generator | -7/Zion | Archive Imp. Shock Absorption System | -7/Zion | Archive Mak. Spear | -7/Zion | Archive Nuclear Pulse Thruster | -7/Zion | Archive Mak. Axe | -7/Zion | Archive Hvy. Machine Gun | -7/Zion | Archive Hvy. Missile Launcher | -7/Zion | Archive Force Field | -7/Zion | Archive Coolant Injector | -7/Zion | Archive Imp. Hacking Suite | -7/Zion | Archive Wave Gun | -7/Zion | Archive Tiamat Missile Launcher | -7/Zion | Archive Robot Schematics ------------------ T-07 Excavator | -7/Zion | Archive K-01 Serf | -7/Zion | Archive B-48 Gladiator | -7/Zion | Archive Fabricated ------------ Nothing Alien Tech Used ----------------- None Achievements -------------- None Challenges ------------ None Game ------ Seed VisualPulseStick Manual? 0 Play Time 00:55:06 Cumulative 173.5 hours Start 2023.07.21 @ 19:34:00 End 2023.07.21 @ 20:30:47 Sessions 1 Manual Loads 0 Difficulty Rogue Special Mode None Game No. 223 Rogue 223 Adventurer 0 Explorer 0 Win Type - Total 3 Types 2/0/0/1/0/0/0/0/0 Lore% 65 Gallery% 74 Achievement% 58 Wizard Run 0 Options --------- ASCII 0 Keyboard 0 Movement Numpad Keybinds 0 Fullscreen 1 Font 18/SmallcapsGlow Map View 76x50 Tactical HUD 1 Map Filters NONE Filters NONE Steam 1 RUN: c249bdbb-50e2-48d8-8b16-83d4bcacb5b1